Workbook

Sheet Лист1
A5: СПРАВКА
A6: об исполнении норматива формирования расходов на содержание
A7: органов местного самоуправления Юрьев-Польского района за 1 квартал 2016 года
A9: Наименование органов местного самоуправления | B9: Утверждено за 1 квартал 2016 года
B10: Расходы бюджетов ОМС за 1 квартал 2016 года всего (тыс.рублей.) | C10: Расходы на содержание ОМС за 1 квартал 2016 года по данным отчета за 1 квартал 2016 г. (тыс.рублей) | D10: Объем расходы на содержание ОМС на 2015 год по нормативу, установленному постановлением Губернатора области от 01.07.2011 № 662 (тыс.рублей) | E10: Доля расходов на содержание ОМС в общем объеме расходов местных бюджетов сложившаяся за отчетный период (%) | F10: Норматив, установленный на содержание ОМС по постановлению Губернатора области от 01.07.2011 № 662 (%) | G10: Отклонение установленного норматива | H10: Отклонение установленного норматива
G11: от фактически сложившегося по отчету | H11: от фактически сложившегося по отчету
G12: (%) | H12: (тыс.рублей)
A13: 1 | B13: 2 | C13: 3 | D13: 5 | E13: 6 | F13: 7 | G13: 5 | H13: 6
A14: Юрьев-Польский район | B14: 666842 | C14: 35724.9 | D14: =B14*F14% -> 48012.624 | E14: =C14/B14*100 -> 5.357326023 | F14: 7.2 | G14: =E14-F14 -> -1.842673977 | H14: =C14-D14 -> -12287.724
A15: муниципальный район | B15: 576227.5 | C15: 29754.9 | D15: =B14*F15% -> 30207.9426 | E15: =C15/B14*100 -> 4.462061478 | F15: 4.53 | G15: =E15-F15 -> -0.06793852217 | H15: =C15-D15 -> -453.0426
A16: Красносельское | B16: 25093 | C16: 2801 | D16: =B16*F16% -> 3337.369 | E16: =ROUND((C16/B16*100),1) -> 11.2 | F16: 13.3 | G16: =E16-F16 -> -2.1 | H16: =C16-D16 -> -536.369
A17: Небыловское | B17: 17682 | C17: 1843 | D17: =B17*F17% -> 2351.706 | E17: =ROUND((C17/B17*100),1) -> 10.4 | F17: 13.3 | G17: =E17-F17 -> -2.9 | H17: =C17-D17 -> -508.706
A18: Симское | B18: 10063 | C18: 1326 | D18: =B18*F18% -> 1338.379 | E18: =ROUND((C18/B18*100),1) -> 13.2 | F18: 13.3 | G18: =E18-F18 -> -0.1 | H18: =C18-D18 -> -12.379

Sheet Лист2

Sheet Лист3
